bitfinex-derivatives/quotes_BTCF0:USTF0_20251204
["timestamp","ask_amount","ask_price","bid_price","bid_amount"]
[1764829084473,0.0975307,93097.0,93096.0,0.05807]
[1764829084669,0.0975307,93097.0,93096.0,0.02844]
[1764829084868,0.0975307,93097.0,93096.0,0.05807]
[1764829085081,0.0975307,93097.0,93096.0,0.02844]
[1764829085484,0.08679,93097.0,93096.0,0.05807]
[1764829085782,0.08979,93097.0,93096.0,0.05807]
[1764829087587,0.08979,93097.0,93096.0,0.07544]
[1764829088281,0.033,93097.0,93096.0,0.15964606]
[1764829088479,0.003,93097.0,93096.0,0.62964606]
[1764829088780,0.00016116,93106.0,93096.0,0.62964606]
[1764829088781,0.00016116,93106.0,93105.0,0.0688096]
[1764829088990,0.03016116,93106.0,93105.0,0.0688096]
[1764829089179,0.05928116,93106.0,93105.0,0.0688096]
[1764829090685,0.02928116,93106.0,93105.0,0.0688096]
[1764829090984,0.06228116,93106.0,93105.0,0.0688096]
[1764829091185,0.03316116,93106.0,93105.0,0.0688096]
[1764829091586,0.06228116,93106.0,93105.0,0.0688096]
[1764829092186,0.06228116,93106.0,93105.0,0.2188096]
[1764829092392,0.00316116,93106.0,93105.0,0.3588096]
[1764829093283,0.03316116,93106.0,93105.0,0.3588096]
[1764829093487,0.03316116,93106.0,93105.0,0.1188096]
[1764829093892,0.08995116,93106.0,93105.0,0.0688096]
[1764829094484,0.08995116,93106.0,93105.0,0.2188096]
[1764829094787,0.08995116,93106.0,93105.0,0.0688096]
[1764829094987,0.08995116,93106.0,93105.0,0.4088096]
[1764829095377,0.08995116,93106.0,93105.0,0.0688096]
[1764829095882,0.08995116,93106.0,93105.0,0.1988096]
[1764829096393,0.08995116,93106.0,93105.0,0.0688096]
[1764829098090,0.08995116,93106.0,93105.0,0.05807]
[1764829106092,0.05679,93097.0,93096.0,0.15301676]
[1764829106296,0.08679,93097.0,93096.0,0.15301676]
[1764829107798,0.08779,93097.0,93096.0,0.12338676]
[1764829107999,0.08779,93097.0,93096.0,0.15301676]
[1764829109395,0.08779,93097.0,93087.0,0.15244011]
[1764829109396,0.05679,93088.0,93087.0,0.06897286]
[1764829109589,0.08679,93088.0,93087.0,0.06897286]
[1764829109996,0.08679,93088.0,93087.0,0.00016116]
[1764829110797,0.08679,93088.0,93087.0,0.00116116]
[1764829111095,0.08679,93088.0,93087.0,0.00216116]
[1764829111997,0.08679,93088.0,93087.0,0.00116116]
[1764829112198,0.07314,93078.0,93077.0,0.02844]
[1764829112507,0.07314,93078.0,93077.0,0.05807]
[1764829112508,0.10314,93078.0,93077.0,0.05807]
[1764829114706,0.10314,93078.0,93077.0,0.05907]
[1764829115002,0.08679,93078.0,93077.0,0.05907]
[1764829115305,0.08647,93078.0,93077.0,0.05907]
[1764829117193,0.10394,93078.0,93077.0,0.05907]
[1764829122608,0.08647,93078.0,93077.0,0.19907]
[1764829122915,0.08647,93078.0,93077.0,0.05907]
[1764829123107,0.08647,93078.0,93077.0,0.20907]
[1764829123313,0.08647,93078.0,93077.0,0.05907]
[1764829123916,0.08647,93078.0,93077.0,0.44907]
[1764829124313,0.08647,93078.0,93077.0,0.05907]
[1764829129315,0.05636116,93087.0,93086.0,0.0687918]
[1764829129516,0.04016116,93087.0,93086.0,0.0687918]
[1764829129818,0.04016116,93087.0,93086.0,0.1187918]
[1764829130018,0.09636116,93087.0,93086.0,0.05805]
[1764829130219,0.09636116,93087.0,93086.0,0.0687918]
[1764829130524,0.09936116,93087.0,93086.0,0.0687918]
[1764829131423,0.09936116,93087.0,93086.0,0.3987918]
[1764829132015,0.09936116,93087.0,93086.0,0.49515927]
[1764829132626,0.09936116,93087.0,93086.0,0.3987918]
[1764829133516,0.09936116,93087.0,93086.0,0.0687918]
[1764829133717,0.09936116,93087.0,93086.0,0.16521585]
[1764829134326,0.09936116,93087.0,93086.0,0.0687918]
[1764829134829,0.09936116,93087.0,93086.0,0.4687918]
[1764829135021,0.09936116,93087.0,93086.0,0.0687918]
[1764829135221,0.04316116,93087.0,93086.0,0.2587918]
[1764829135527,0.03316116,93087.0,93086.0,0.2587918]
[1764829135928,0.00316116,93087.0,93086.0,0.2587918]
[1764829136126,0.03316116,93087.0,93086.0,0.2587918]
[1764829136521,0.03316116,93087.0,93086.0,0.2597918]
[1764829136522,0.03016116,93087.0,93086.0,0.2597918]
[1764829136730,0.03016116,93087.0,93086.0,0.2607918]
[1764829137630,0.03016116,93087.0,93086.0,0.4807918]
[1764829138020,0.03016116,93087.0,93086.0,0.4797918]
[1764829138330,0.03016116,93087.0,93086.0,0.61586022]
[1764829138731,0.03016116,93087.0,93086.0,0.4807918]
[1764829141422,0.00016116,93087.0,93086.0,0.4807918]
[1764829141832,0.0840792,93110.0,93109.0,0.05805]
[1764829142032,0.1140792,93110.0,93109.0,0.05805]
[1764829142238,0.07334,93100.0,93099.0,0.09650572]
[1764829142532,0.0562,93094.0,93093.0,0.09650572]
[1764829142722,0.0562,93094.0,93086.0,0.002]
[1764829142723,0.066941,93093.0,93092.0,0.09650572]
[1764829142922,0.096941,93093.0,93091.0,0.09650572]
[1764829143228,0.0669417,93087.0,93086.0,0.09750572]
[1764829143428,0.0969417,93087.0,93086.0,0.09751031]
[1764829143933,0.0969417,93087.0,93086.0,0.09651031]
[1764829144535,0.0969417,93087.0,93086.0,0.12449031]
[1764829145330,0.0999417,93087.0,93086.0,0.12449031]
[1764829146838,0.0999417,93087.0,93086.0,0.09651031]
[1764829147035,0.05695,93085.0,93084.0,0.00016116]
[1764829147227,0.09695,93085.0,93084.0,0.00016116]
[1764829148436,0.09995,93085.0,93084.0,0.00016116]
[1764829157748,0.11629,93085.0,93084.0,0.00016116]
[1764829161544,0.11629,93085.0,93084.0,0.01090326]
[1764829161737,0.11629,93085.0,93084.0,0.03888326]
[1764829162444,0.11629,93085.0,93084.0,0.06597326]
[1764829162650,0.09995,93085.0,93084.0,0.16248357]
[1764829162852,0.09995,93085.0,93084.0,0.06597326]
[1764829163753,0.09995,93085.0,93084.0,0.06697326]
[1764829163951,0.09695,93085.0,93084.0,0.06697326]
[1764829164147,0.09795,93085.0,93084.0,0.06697326]
[1764829167553,0.09795,93085.0,93084.0,0.16348357]
[1764829167753,0.09795,93085.0,93084.0,0.06697326]
[1764829168362,0.09795,93085.0,93084.0,0.16348357]
[1764829170663,0.09795,93085.0,93084.0,0.15274147]
[1764829171464,0.09795,93085.0,93084.0,0.05623116]
[1764829172358,0.108692,93085.0,93084.0,0.05623116]
[1764829172560,0.125032,93085.0,93084.0,0.00116116]
[1764829190371,0.125032,93085.0,93084.0,0.02914116]
[1764829190566,0.125032,93085.0,93084.0,0.00116116]
[1764829198375,0.125032,93085.0,93084.0,0.02914116]
[1764829198677,0.125032,93085.0,93084.0,0.00116116]
[1764829201672,0.0651228,93078.0,93077.0,0.13510801]
[1764829201975,0.07189,93076.0,93075.0,0.11076353]
[1764829202165,0.01656,93072.0,93069.0,0.0107438]
[1764829202366,0.05438,93070.0,93069.0,0.0387238]
[1764829202563,0.08438,93070.0,93069.0,0.0674438]
[1764829203577,0.08438,93070.0,93069.0,0.0704438]
[1764829203979,0.0961238,93070.0,93069.0,0.0674438]
[1764829204867,0.0961238,93070.0,93060.0,0.01672116]
[1764829204868,0.05781,93061.0,93060.0,0.05738116]
[1764829205174,0.0985547,93061.0,93060.0,0.00016116]
[1764829205679,0.0985547,93061.0,93060.0,1.16e-06]
[1764829206180,0.0985547,93061.0,93060.0,0.00100116]
[1764829206878,0.0457447,93061.0,93060.0,1.16e-06]
[1764829207376,0.0467447,93061.0,93060.0,1.16e-06]
[1764829208174,0.05,93071.0,93070.0,0.07023]
[1764829208377,0.05793815,93100.0,93070.0,0.07023]
[1764829208378,0.0107406,93097.0,93078.0,0.0679628]
[1764829208575,0.01765,93100.0,93098.0,0.05722]
[1764829208576,0.05781,93099.0,93098.0,0.05722]
[1764829208882,0.08781,93099.0,93098.0,0.05722]
[1764829209482,0.05941,93099.0,93098.0,0.05722]
[1764829209976,0.08781,93099.0,93098.0,0.05722]
[1764829210181,0.08881,93099.0,93098.0,0.05722]
[1764829211674,0.08781,93099.0,93098.0,0.1436441]
[1764829222087,0.08781,93099.0,93098.0,0.0864241]
[1764829222386,0.08781,93099.0,93089.0,0.00016116]
[1764829222589,0.06663,93090.0,93089.0,0.00016116]
[1764829222792,0.09663,93090.0,93089.0,0.08669321]
[1764829222995,0.09663,93090.0,93089.0,0.00016116]
[1764829232888,0.07421,93070.0,93069.0,0.12549689]
[1764829233084,0.07421,93070.0,93052.0,0.0107458]
[1764829233085,0.07546,93065.0,93064.0,0.09662689]
[1764829233281,0.07546,93065.0,93057.0,0.15384689]
[1764829233282,0.0685551,93058.0,93057.0,0.15384689]
[1764829233492,0.08781,93058.0,93057.0,0.05722]
[1764829234498,0.08781,93058.0,93057.0,0.14295675]
[1764829234686,0.08781,93058.0,93057.0,0.05722]
[1764829234997,0.08781,93058.0,93057.0,0.14206294]
[1764829235293,0.08781,93058.0,93057.0,0.05722]
[1764829237293,0.08781,93058.0,93057.0,0.14446075]
[1764829237494,0.08781,93058.0,93057.0,0.05722]
[1764829238296,0.03,93058.0,93057.0,0.05722]
[1764829238489,0.03,93058.0,93057.0,0.14464998]
[1764829238695,0.05857,93058.0,93057.0,0.05722]
[1764829239296,0.03,93058.0,93057.0,0.05722]
[1764829239593,0.03,93058.0,93057.0,0.19722]
[1764829239788,0.03,93058.0,93057.0,0.05722]
[1764829239995,0.08969,93058.0,93057.0,0.05722]
[1764829240394,0.08969,93058.0,93057.0,0.14608834]
[1764829241194,0.08969,93058.0,93057.0,0.14808834]
[1764829241898,0.08969,93058.0,93057.0,0.14708834]
[1764829242198,0.08969,93058.0,93057.0,0.05922]
[1764829242695,0.08969,93058.0,93057.0,0.05822]
[1764829243198,0.08969,93058.0,93057.0,0.05722]
[1764829243397,0.08969,93058.0,93057.0,0.05822]
[1764829243596,0.08969,93058.0,93057.0,0.14514287]
[1764829243796,0.08969,93058.0,93057.0,0.05822]
[1764829244296,0.03,93058.0,93057.0,0.14424036]
[1764829244599,0.03,93058.0,93057.0,0.05822]
[1764829247297,0.03,93058.0,93057.0,0.14229787]
[1764829248196,0.03,93058.0,93057.0,0.46229787]
[1764829251601,0.03,93058.0,93057.0,0.55892476]
[1764829252500,0.03,93058.0,93057.0,0.46229787]
[1764829255910,0.017,93108.0,93057.0,0.46229787]
[1764829255911,0.05885,93091.0,93090.0,0.05714]
[1764829256113,0.08885,93091.0,93081.0,0.0107423]
[1764829256314,0.05885,93082.0,93081.0,0.0678823]
[1764829256514,0.08885,93082.0,93081.0,0.0678823]
[1764829257309,0.017,93078.0,93074.0,0.12397195]
[1764829257509,0.05885,93075.0,93074.0,0.05714]
[1764829257714,0.08885,93075.0,93074.0,0.05714]
[1764829258611,0.03,93075.0,93074.0,0.05714]
[1764829258810,0.03,93075.0,93074.0,0.15452195]
[1764829259012,0.08885,93075.0,93074.0,0.05814]
[1764829259315,0.08885,93075.0,93074.0,0.05914]
[1764829260415,0.08885,93075.0,93074.0,0.05814]
[1764829260611,0.08885,93075.0,93074.0,0.05914]
[1764829260811,0.08885,93075.0,93074.0,0.002]
[1764829261606,0.08885,93075.0,93074.0,0.05914]
[1764829261816,0.08885,93075.0,93074.0,0.002]
[1764829262210,0.08885,93075.0,93074.0,0.001]
[1764829262518,0.08985,93075.0,93074.0,0.001]
[1764829263309,0.05885,93073.0,93072.0,0.02775116]
[1764829263506,0.08885,93073.0,93072.0,0.02775116]
[1764829264208,0.08885,93073.0,93072.0,0.05730116]
[1764829264415,0.03,93073.0,93072.0,0.07450116]
[1764829265115,0.03,93073.0,93072.0,0.49450116]
[1764829266217,0.03,93073.0,93072.0,0.49650116]
[1764829266715,0.03,93073.0,93072.0,0.07850116]
[1764829266915,0.05754116,93091.0,93090.0,0.0571]
[1764829267110,0.05754116,93091.0,93087.0,0.0571]
[1764829267111,0.05738,93088.0,93087.0,0.0571]
[1764829267314,0.08738,93088.0,93087.0,0.0571]
[1764829268814,0.03,93088.0,93087.0,0.0678417]
[1764829269019,0.05945,93088.0,93087.0,0.0678417]
[1764829269220,0.03,93088.0,93087.0,0.4078417]
[1764829269427,0.08738,93088.0,93087.0,0.0678417]
[1764829269717,0.03,93088.0,93087.0,0.0678417]
[1764829270306,0.08738,93088.0,93087.0,0.15251983]
[1764829270510,0.08738,93088.0,93087.0,0.24881005]
[1764829270711,0.03,93088.0,93087.0,0.37881005]
[1764829270915,0.03,93088.0,93087.0,0.37981005]
[1764829271117,0.03,93088.0,93087.0,0.24981005]
[1764829271314,0.03,93088.0,93087.0,0.15351983]
[1764829271611,0.03,93088.0,93087.0,0.24981005]
[1764829271816,0.03,93088.0,93087.0,0.25281005]
[1764829272116,0.05945,93088.0,93087.0,0.25281005]
[1764829272314,0.05945,93088.0,93087.0,0.24981005]
[1764829272518,0.05945,93088.0,93087.0,0.15551983]
[1764829273113,0.08738,93088.0,93087.0,0.15551983]
[1764829274215,0.08738,93088.0,93087.0,0.0708417]
[1764829274617,0.05945,93088.0,93087.0,0.2308417]
[1764829274811,0.08738,93088.0,93087.0,0.47713192]
[1764829275011,0.08738,93088.0,93087.0,0.28713192]
[1764829276015,0.08738,93088.0,93087.0,0.56713192]
[1764829276216,0.03,93088.0,93087.0,0.56713192]
[1764829276414,0.03,93088.0,93087.0,0.4708417]
[1764829276609,0.03,93088.0,93087.0,0.55512447]
[1764829278422,0.08738,93088.0,93087.0,0.15512447]
[1764829279121,0.08738,93088.0,93087.0,0.12724984]
[1764829279321,0.08738,93088.0,93087.0,0.09922984]
[1764829279621,0.08738,93088.0,93087.0,0.12724984]
[1764829279916,0.08738,93088.0,93087.0,0.03102]
[1764829280616,0.08738,93088.0,93087.0,0.003]
[1764829280821,0.08738,93088.0,93087.0,0.002]
[1764829281021,0.08738,93088.0,93087.0,0.001]
[1764829281423,0.08738,93088.0,93087.0,0.0688417]
[1764829281619,0.08738,93088.0,93087.0,0.0678417]
[1764829281825,0.08738,93088.0,93087.0,0.0571]
[1764829282821,0.08738,93088.0,93087.0,0.0591]
[1764829283318,0.08738,93088.0,93087.0,0.0581]
[1764829284223,0.08738,93088.0,93087.0,0.0571]
[1764829285922,0.03,93088.0,93087.0,0.3771]
[1764829286922,0.03,93088.0,93087.0,0.51192373]
[1764829287218,0.03,93088.0,93087.0,0.51292373]
[1764829287423,0.03,93088.0,93087.0,0.51592373]
[1764829287622,0.03,93088.0,93087.0,0.3811]
[1764829288423,0.03,93088.0,93087.0,0.51492373]
[1764829288617,0.03,93088.0,93087.0,0.51592373]
[1764829290520,0.03,93088.0,93087.0,0.3811]
[1764829291414,0.08738,93088.0,93087.0,0.3811]
[1764829291725,0.08738,93088.0,93087.0,0.2415041]
[1764829291913,0.08738,93088.0,93087.0,0.2124241]
[1764829292115,0.08738,93088.0,93087.0,0.14591968]
[1764829292310,0.08738,93088.0,93087.0,0.17393968]
[1764829292714,0.08738,93088.0,93087.0,0.21376138]
[1764829292913,0.08738,93088.0,93087.0,0.11745324]
[1764829293126,0.08738,93088.0,93087.0,0.21378547]
[1764829293309,0.08738,93088.0,93087.0,0.11745324]
[1764829293613,0.08738,93088.0,93087.0,0.11645324]
[1764829294014,0.08738,93088.0,93087.0,0.11445324]
[1764829294220,0.08738,93088.0,93087.0,0.11545324]
[1764829295317,0.0876,93088.0,93087.0,0.11545324]
[1764829296224,0.05961,93088.0,93087.0,0.11545324]
[1764829296418,0.0876,93088.0,93087.0,0.11545324]
[1764829296613,0.03,93088.0,93087.0,0.0698417]
[1764829296818,0.03,93088.0,93087.0,0.4698417]
[1764829297013,0.05961,93088.0,93087.0,0.2098417]
[1764829297423,0.0876,93088.0,93087.0,0.0698417]
[1764829299418,0.0876,93088.0,93087.0,0.002]
[1764829300628,0.0876,93088.0,93087.0,0.001]
[1764829300823,0.0576,93087.0,93086.0,0.0392218]
[1764829301035,0.0576,93082.0,93081.0,0.19148457]
[1764829301222,0.0876,93082.0,93081.0,0.20222687]
[1764829301830,0.0876,93082.0,93081.0,0.0672523]
[1764829302621,0.0876,93082.0,93081.0,0.0682523]
[1764829302820,0.0876,93082.0,93081.0,0.3582523]
[1764829303016,0.03,93082.0,93081.0,0.3582523]
[1764829303422,0.03,93082.0,93081.0,0.3592523]
[1764829303719,0.00016116,93091.0,93090.0,0.0672514]
[1764829303920,0.03016116,93091.0,93090.0,0.5272514]
[1764829304725,0.03016116,93091.0,93090.0,0.66224796]
[1764829305033,0.03016116,93091.0,93090.0,0.5272514]
[1764829305232,6e-08,93091.0,93090.0,0.5272514]
[1764829305423,0.01771,93149.0,93090.0,0.5272514]
[1764829305424,0.01771,93142.0,93125.0,0.0672473]
[1764829305727,0.08786845,93126.0,93125.0,0.5072473]
[1764829305923,0.05987845,93126.0,93125.0,0.0672473]
[1764829306130,0.05987845,93126.0,93125.0,0.3472473]
[1764829306332,0.05987845,93126.0,93125.0,0.0672473]
[1764829306528,0.06987845,93126.0,93125.0,0.0672473]
[1764829306833,0.09819845,93126.0,93125.0,0.0672473]
[1764829307030,0.09819845,93126.0,93125.0,0.05651]
[1764829307227,0.05737,93120.0,93119.0,0.1937072]
[1764829307529,0.10412,93120.0,93119.0,0.05883]
[1764829307738,0.03,93120.0,93119.0,0.05883]
[1764829308029,0.08737,93120.0,93119.0,0.05883]
[1764829308728,0.08837,93120.0,93119.0,0.05883]
[1764829308923,0.09237,93120.0,93119.0,0.05883]
[1764829309438,0.00026845,93126.0,93125.0,0.05883]
[1764829309629,0.00026845,93126.0,93125.0,0.48883]
[1764829309830,0.03026845,93126.0,93125.0,0.48883]
[1764829310130,0.00026845,93126.0,93125.0,1.98883]
[1764829311121,0.03026845,93126.0,93125.0,1.98883]
[1764829311324,0.00026845,93126.0,93125.0,2.48811]
[1764829312327,0.00026845,93126.0,93125.0,2.58399941]
[1764829312534,0.03126845,93126.0,93125.0,2.08471941]
[1764829312840,0.00126845,93126.0,93125.0,2.08471941]
[1764829313028,0.00126845,93126.0,93125.0,2.58395941]
[1764829313338,0.03126845,93126.0,93125.0,2.4988073]
[1764829313535,0.05753116,93135.0,93134.0,0.0695663]
[1764829313739,0.08753116,93135.0,93134.0,0.1156504]
[1764829314640,0.08853116,93135.0,93134.0,0.1156504]
[1764829315035,0.08853116,93135.0,93123.0,0.09588941]
[1764829315036,0.05737,93124.0,93123.0,0.12563941]
[1764829315339,0.05737,93122.0,93121.0,0.05883]
[1764829315541,0.08737,93122.0,93121.0,0.05883]
[1764829316035,0.08737,93122.0,93121.0,0.02975]
[1764829316439,0.05737,93117.0,93116.0,0.02991116]
[1764829316642,0.08737,93117.0,93116.0,0.05899116]
[1764829317039,0.08737,93117.0,93116.0,0.02991116]
[1764829318643,0.08737,93117.0,93116.0,0.00016116]
[1764829318843,0.0107384,93116.0,93115.0,0.09588528]
[1764829319036,0.05737,93110.0,93107.0,0.09588528]
[1764829319235,0.05737,93110.0,93105.0,8.526e-05]
[1764829319236,0.05737,93108.0,93106.0,0.09588528]
[1764829319440,0.05737,93108.0,93107.0,0.14147622]
[1764829319441,0.08737,93108.0,93107.0,0.14147622]
[1764829319636,0.08737,93108.0,93105.0,8.526e-05]
[1764829319836,0.05737,93106.0,93105.0,8.526e-05]
[1764829320148,0.08737,93106.0,93105.0,8.526e-05]
[1764829320330,0.08737,93106.0,93100.0,0.07676331]
[1764829320331,0.4981095,93106.0,93100.0,0.07676331]
[1764829320537,0.4981095,93106.0,93097.0,0.00016107]
[1764829320538,0.05737,93098.0,93097.0,0.00382121]
[1764829320744,0.05737,93098.0,93085.0,0.0107419]
[1764829320745,0.05737,93086.0,93085.0,0.10662718]
[1764829320944,0.08737,93086.0,93085.0,0.0107419]
[1764829321143,0.08737,93086.0,93085.0,0.0404919]
[1764829321545,0.08737,93086.0,93085.0,0.0695719]
[1764829321845,0.08745526,93086.0,93085.0,0.0695719]
[1764829322345,0.08745526,93086.0,93085.0,0.02975]
[1764829322547,0.08745526,93086.0,93085.0,0.03075]
[1764829322739,0.08745526,93086.0,93085.0,0.001]
[1764829323342,0.08745526,93086.0,93076.0,0.00016107]
[1764829323343,0.05737,93077.0,93076.0,0.00016107]
[1764829323650,0.0981129,93077.0,93076.0,0.00016107]
[1764829323948,0.06326,93069.0,93068.0,0.0107438]
[1764829324150,0.06326,93067.0,93066.0,0.12301528]
[1764829324352,0.09326,93067.0,93066.0,0.06012]
[1764829325941,0.09326,93067.0,93066.0,0.06612]
[1764829326451,0.09326,93067.0,93066.0,0.06712]
[1764829327643,0.03,93067.0,93066.0,0.06712]
[1764829327947,0.03,93067.0,93066.0,0.35712]
[1764829328451,0.03,93067.0,93066.0,0.06712]
[1764829328838,0.09326,93067.0,93066.0,0.06712]
[1764829330240,0.03,93067.0,93066.0,0.36712]
[1764829330446,0.03,93067.0,93066.0,0.06712]
[1764829333852,0.09326,93067.0,93066.0,0.06712]
[1764829335553,0.05729,93067.0,93066.0,0.06712]
[1764829335759,0.03,93067.0,93066.0,0.06712]
[1764829337354,0.05729,93067.0,93066.0,0.06712]
[1764829337852,0.03,93067.0,93066.0,0.06712]
[1764829338362,0.03,93067.0,93066.0,0.50712]
[1764829339443,0.03,93067.0,93066.0,0.06712]
[1764829339649,0.03,93067.0,93066.0,0.20712]
[1764829341155,0.03,93067.0,93066.0,0.06712]
[1764829343563,0.05729,93067.0,93066.0,0.06712]
[1764829344153,0.09326,93067.0,93066.0,0.06712]
[1764829344961,0.09326,93067.0,93066.0,0.007]
[1764829347167,0.03,93067.0,93066.0,0.0778641]
[1764829347870,0.03,93067.0,93066.0,0.17418262]
[1764829348263,0.03,93067.0,93066.0,0.174189]
[1764829348464,0.03,93067.0,93066.0,0.0778641]
[1764829350770,0.03,93067.0,93066.0,0.2078641]
[1764829351375,0.03,93067.0,93066.0,0.0778641]
[1764829351567,0.03,93067.0,93066.0,0.2178641]
[1764829351767,0.03,93067.0,93066.0,0.0778641]
[1764829352470,0.09326,93067.0,93066.0,0.007]
[1764829353067,0.09326,93067.0,93066.0,0.03413]
[1764829354978,0.09326,93067.0,93066.0,0.06517]
[1764829356280,0.09326,93067.0,93066.0,0.0759141]
[1764829357474,0.03,93067.0,93066.0,0.0759141]
[1764829358271,0.09622,93067.0,93066.0,0.0759141]
[1764829363081,0.09622,93067.0,93066.0,0.06517]
[1764829366077,0.09622,93067.0,93066.0,0.007]
[1764829369379,0.05849,93059.0,93058.0,0.09662601]
[1764829369682,0.0857651,93058.0,93057.0,0.00010909]
[1764829369884,0.1157651,93058.0,93057.0,0.00010909]
[1764829370787,0.0692358,93052.0,93046.0,0.0138786]
[1764829370987,0.0992358,93052.0,93046.0,0.0138786]
[1764829372593,0.1002358,93052.0,93051.0,0.07775345]
[1764829373283,0.1042358,93052.0,93051.0,0.07775345]
[1764829374683,0.09349,93052.0,93051.0,0.07775345]
[1764829377294,0.035,93052.0,93051.0,0.07775345]
[1764829377689,0.035,93052.0,93051.0,0.40775345]
[1764829378388,0.0338909,93052.0,93051.0,0.40775345]
[1764829378692,0.03,93052.0,93051.0,0.40875345]
[1764829379192,0.03,93052.0,93051.0,0.54363065]
[1764829379391,0.03,93052.0,93051.0,0.54563065]
[1764829379997,8.526e-05,93059.0,93051.0,0.54563065]
[1764829380205,0.03008526,93059.0,93058.0,0.0883751]
[1764829380499,0.03008526,93059.0,93058.0,0.5683751]
[1764829382192,0.03008526,93059.0,93058.0,0.61397125]
[1764829382401,0.05865116,93076.0,93075.0,0.05972]
[1764829382590,0.08865116,93076.0,93075.0,0.15616604]
[1764829382792,0.08865116,93076.0,93075.0,0.05972]
[1764829382990,0.08865116,93076.0,93075.0,0.15616456]
[1764829383595,0.09065116,93076.0,93075.0,0.15616456]
[1764829383995,0.09065116,93076.0,93075.0,0.16690766]
[1764829384296,0.09065116,93076.0,93066.0,0.13502446]
[1764829384297,0.0755136,93071.0,93070.0,0.09644456]
[1764829384596,0.06477,93068.0,93067.0,0.15983456]
[1764829384790,0.09477,93068.0,93067.0,0.15983456]
[1764829385187,0.09477,93068.0,93067.0,0.06339]
[1764829387399,0.1055139,93068.0,93067.0,0.06339]
[1764829387601,0.1055139,93068.0,93067.0,0.12672439]
[1764829387804,0.09477,93068.0,93067.0,0.12672439]
[1764829388106,0.09477,93068.0,93067.0,0.15981439]
[1764829390320,0.09477,93068.0,93067.0,0.06339]
[1764829393515,0.09477,93068.0,93063.0,0.09642439]
[1764829393516,0.06477,93064.0,93063.0,0.09642439]
[1764829393824,0.06477,93055.0,93054.0,0.09642439]
[1764829394010,0.09477,93055.0,93054.0,0.09642439]
[1764829394514,0.09477,93055.0,93054.0,0.17055989]
[1764829394718,0.09477,93055.0,93054.0,0.15981439]
[1764829395423,0.09577,93055.0,93054.0,0.15981439]
[1764829396924,0.001,93055.0,93054.0,0.49339]
[1764829397121,0.06493116,93076.0,93075.0,0.06339]
[1764829397425,0.10493116,93076.0,93075.0,0.06339]
[1764829398713,0.10593116,93076.0,93075.0,0.06339]
[1764829399123,0.10493116,93076.0,93075.0,0.06339]
[1764829401416,0.10493116,93076.0,93070.0,0.09642257]
[1764829401417,0.0755136,93071.0,93070.0,0.09642257]
[1764829401626,0.0755136,93071.0,93067.0,0.010744]
[1764829401627,0.0107441,93068.0,93067.0,0.010744]
[1764829401822,0.1155141,93068.0,93067.0,0.12552535]
[1764829402132,0.1155141,93068.0,93067.0,0.074134]
[1764829402326,0.10477,93068.0,93067.0,0.074134]
[1764829402530,0.10477,93068.0,93067.0,0.17055657]
[1764829403524,0.10477,93068.0,93067.0,0.12672257]
[1764829404029,0.10477,93068.0,93067.0,0.12772257]
[1764829404626,0.10477,93068.0,93067.0,0.09742257]
[1764829404826,0.10477,93068.0,93067.0,0.001]
[1764829406631,0.10577,93068.0,93067.0,0.001]
[1764829406826,0.07306,93065.0,93064.0,0.07721772]
[1764829407137,0.10306,93065.0,93064.0,0.07721772]
[1764829407438,0.0705753,93056.0,93055.0,0.14127486]
[1764829407635,0.1005753,93056.0,93055.0,0.14127486]
[1764829407937,0.1005753,93056.0,93055.0,0.20064486]
[1764829409337,0.1005753,93056.0,93055.0,0.10422229]
[1764829409936,0.1005753,93056.0,93055.0,0.10522229]
[1764829411836,0.1005753,93056.0,93055.0,0.04585229]
[1764829412627,0.1005753,93056.0,93055.0,0.001]
[1764829414437,0.1005753,93056.0,93055.0,0.06079]
[1764829415142,0.1005753,93056.0,93055.0,0.001]
[1764829423649,0.1005753,93056.0,93055.0,0.03237]
[1764829424348,0.1005753,93056.0,93055.0,0.13928824]
[1764829424551,0.1005753,93056.0,93055.0,0.06212]
[1764829435057,0.1005753,93056.0,93055.0,0.001]
[1764829444958,0.1005753,93056.0,93055.0,0.05551]
[1764829445261,0.1005753,93056.0,93055.0,0.15193257]
[1764829445958,0.1005753,93056.0,93055.0,0.05551]
[1764829449661,0.1005753,93056.0,93055.0,0.02812]
[1764829450060,0.1005753,93056.0,93055.0,0.05551]
[1764829450254,0.1005753,93056.0,93055.0,0.15193257]
[1764829450957,0.1005753,93056.0,93055.0,0.05551]
[1764829457972,0.1005753,93056.0,93055.0,0.15193257]
[1764829462477,0.1005753,93056.0,93055.0,0.12454257]
[1764829462866,0.1005753,93056.0,93055.0,0.15193257]
[1764829468081,0.1005753,93056.0,93055.0,0.05551]
[1764829471169,0.03,93056.0,93055.0,0.05551]
[1764829472076,0.0014704,93056.0,93055.0,0.05551]
[1764829472575,0.0014704,93056.0,93055.0,0.19080841]
[1764829472976,0.0592504,93056.0,93055.0,0.19080841]
[1764829473176,0.0592504,93056.0,93055.0,0.05551]
[1764829475877,0.0014704,93056.0,93055.0,0.05551]
[1764829476689,0.0304004,93056.0,93055.0,0.05551]
[1764829477090,0.0577204,93056.0,93055.0,0.05551]
[1764829478285,0.0014704,93056.0,93055.0,0.05551]
[1764829484980,0.0577204,93056.0,93055.0,0.05551]
[1764829486294,0.0577204,93056.0,93055.0,0.001]
[1764829491194,0.0577204,93056.0,93055.0,0.05814]
[1764829493387,0.0577204,93056.0,93055.0,0.07469]
[1764829495106,0.0304004,93056.0,93055.0,0.07469]
[1764829495498,0.0602104,93056.0,93055.0,0.07469]
[1764829500900,0.0014704,93056.0,93055.0,0.1197795]
[1764829501097,0.05,93066.0,93055.0,0.1197795]
[1764829501098,0.05,93066.0,93065.0,0.07369]
[1764829501299,0.16956195,93100.0,93065.0,0.07369]
[1764829501300,0.05016116,93076.0,93075.0,0.0844331]
[1764829501501,0.00377311,93076.0,93075.0,0.4044331]
[1764829501699,0.0107408,93095.0,93088.0,0.0107415]
[1764829502001,0.0975908,93095.0,93094.0,0.05714]
[1764829503300,0.05685,93086.0,93085.0,0.05730116]